fUSD/lending_fUSD_20250310
["ID","MTS","AMOUNT","RATE_DAILY","PERIOD"]
[355860214,1741641046239,-512.35979999,0.0001,2]
[355860215,1741641046264,-4747.98622945,0.0001,2]
[355860216,1741641068240,233.5,8.631e-05,2]
[355860217,1741641068497,233.5,8.659e-05,2]
[355860218,1741641068926,233.5,8.686e-05,2]
[355860219,1741641069138,233.5,8.713e-05,2]
[355860220,1741641069350,233.5,8.74e-05,2]
[355860221,1741641069571,233.5,8.768e-05,2]
[355860222,1741641069802,233.5,8.795e-05,2]
[355860223,1741641070048,233.5,8.822e-05,2]
[355860224,1741641070279,233.5,8.849e-05,2]
[355860225,1741641070836,233.5,8.877e-05,2]
[355860226,1741641122449,-150.0,8.904e-05,2]
[355860228,1741641371526,184.13,8.657e-05,2]
[355860229,1741641536600,525.649338,8.859e-05,2]
[355860230,1741641637150,309.44,8.621e-05,2]
[355860231,1741641669324,171.01,8.621e-05,2]
[355860237,1741641708174,1093.16,8.219e-05,2]
[355860238,1741641804070,250.0,8.621e-05,2]
[355860239,1741642011413,2871.12760949,8.218e-05,2]
[355860241,1741642102538,1000.0,8.586e-05,2]
[355860244,1741642108680,159.25,8.62e-05,2]
[355860245,1741642109321,159.25,8.749e-05,2]
[355860246,1741642109396,159.25,8.878e-05,2]
[355860255,1741642126099,216.3,8.497e-05,2]
[355860283,1741642232133,-83.5,8.904e-05,2]
[355860285,1741642232143,-150.0,8.906e-05,2]
[355860286,1741642232152,-550.0,8.911e-05,2]
[355860288,1741642232161,-233.5,8.931e-05,2]
[355860290,1741642232170,-233.5,8.959e-05,2]
[355860291,1741642232180,-233.5,8.986e-05,2]
[355860293,1741642232189,-159.25,9.008e-05,2]
[355860295,1741642232198,-653.32082986,9.013e-05,2]
[355860296,1741642232208,-947.84288027,9.013e-05,2]
[355860298,1741642232217,-233.5,9.013e-05,2]
[355860300,1741642232228,-233.5,9.04e-05,2]
[355860301,1741642232236,-233.5,9.068e-05,2]
[355860303,1741642232246,-233.5,9.095e-05,2]
[355860305,1741642232255,-233.5,9.122e-05,2]
[355860307,1741642232265,-159.25,9.137e-05,2]
[355860308,1741642232274,-233.5,9.149e-05,2]
[355860310,1741642232284,-6672.67603845,9.224e-05,2]
[355860312,1741642232294,-199.0,9.233e-05,2]
[355860313,1741642232303,-500.0,9.233e-05,2]
[355860315,1741642232313,-653.32082986,9.342e-05,2]
[355860316,1741642232322,-150.0,9.399e-05,2]
[355860317,1741642232332,-3641.18806598,9.4e-05,2]
[355860319,1741642232377,-1160.73433402,9.4e-05,2]
[355860320,1741642232386,-294.4173746,9.4e-05,2]
[355860321,1741642232399,-1976.0760254,9.4e-05,2]
[355860322,1741642232413,-8899.44,9.4e-05,2]
[355860323,1741642232423,-150.0,9.562e-05,7]
[355860324,1741642232432,-158.2133,9.57e-05,2]
[355860325,1741642232441,-1003.0457,9.57e-05,2]
[355860326,1741642232453,-1000.0,9.659e-05,2]
[355860327,1741642232462,-1000.0,9.668e-05,2]
[355860328,1741642232473,-2495.75387465,9.67e-05,2]
[355860331,1741642232492,-707.67199997,9.67e-05,2]
[355860334,1741642232516,-1880.544,9.67e-05,2]
[355860336,1741642232528,-17282.08012538,9.67e-05,2]
[355860338,1741642232538,-8777.67,9.67e-05,2]
[355860340,1741642232547,-19115.41047275,9.67e-05,2]
[355860342,1741642232558,-468.53761822,9.67e-05,2]
[355860345,1741642232576,-416.04190903,9.67e-05,2]
[355860347,1741642232585,-943.976519,9.67e-05,2]
[355860357,1741642238064,-502.36352681,9.67e-05,2]
[355860358,1741642238076,-2099.864192,9.67e-05,2]
[355860359,1741642238087,-393.69097478,9.67e-05,2]
[355860360,1741642238185,-5778.8559238,9.67e-05,2]
[355860361,1741642238249,-7053.23970044,9.67e-05,2]
[355860362,1741642238260,-3768.6,9.67e-05,2]
[355860363,1741642238313,-4087.16916317,9.67e-05,2]
[355860364,1741642238324,-653.32082986,9.67e-05,2]
[355860365,1741642238333,-786.0,9.767e-05,2]
[355860366,1741642238342,-2675.46453214,9.767e-05,2]
[355860399,1741642239978,-1401.53546786,9.767e-05,2]
[355860400,1741642239990,-2033.0,9.767e-05,2]
[355860401,1741642239999,-643.0,9.767e-05,2]
[355860402,1741642240009,-1278.0,9.767e-05,2]
[355860403,1741642240019,-550.0,9.794e-05,2]
[355860404,1741642240029,-550.0,9.794e-05,2]
[355860405,1741642240038,-150.0,9.794e-05,2]
[355860406,1741642240048,-150.0,9.794e-05,2]
[355860407,1741642240058,-1069.89916069,9.8e-05,2]
[355860408,1741642240067,-20053.36245315,9.8e-05,3]
[355860409,1741642240077,-842.7173,9.9e-05,2]
[355860410,1741642240086,-808.138,9.9e-05,2]
[355860411,1741642240095,-5369.6336,9.9e-05,2]
[355860412,1741642240104,-28053.9238,9.9e-05,2]
[355860413,1741642240114,-48058.266,9.9e-05,2]
[355860414,1741642240123,-1000.0,9.9e-05,2]
[355860415,1741642240133,-439.5967,9.9e-05,2]
[355860416,1741642240142,-3068.3707,9.9e-05,2]
[355860417,1741642240152,-5000.0,9.9e-05,2]
[355860418,1741642240162,-397.0,9.973e-05,2]
[355860419,1741642240171,-3861.3947821,9.998e-05,2]
[355860420,1741642240183,-337.20473686,9.998e-05,2]
[355860421,1741642240194,-1981.91448722,9.998e-05,2]
[355860422,1741642240205,-1978.81027814,9.998e-05,2]
[355860423,1741642240217,-952.9485,9.998e-05,2]
[355860424,1741642240322,-306.4868047,9.998e-05,2]
[355860425,1741642240334,-447.3,9.998e-05,2]
[355860450,1741642245953,-3932.0,9.767e-05,2]
[355860451,1741642245963,-21006.13014586,9.998e-05,2]
[355860452,1741642245974,-1360.01842803,9.999e-05,3]
[355860453,1741642245984,-1635.86,9.999e-05,2]
[355860454,1741642245996,-500.0,9.999e-05,2]
[355860455,1741642246006,-500.0,9.999e-05,2]
[355860456,1741642246016,-500.0,9.999e-05,2]
[355860457,1741642246026,-1656.0,0.0001,2]
[355860458,1741642246035,-176.11466586,0.0001,2]
[355860459,1741642246043,-512.45315074,0.0001,2]
[355860460,1741642246200,-510.52500008,0.0001,2]
[355860461,1741642246211,-7116.94419476,0.0001,2]
[355860462,1741642246263,-1731.96,0.0001,2]
[355860481,1741642493397,-158.92,0.00016493,30]
[355860482,1741642493480,-158.92,0.00021419,30]
[355860483,1741642493558,-158.92,0.00026345,30]
[355860484,1741642493723,-500.0,0.00028767,120]
[355860485,1741642493790,-4000.0,0.000289,43]
[355860486,1741642493857,-4000.0,0.000289,43]
[355860487,1741642493925,-4000.0,0.000289,43]
[355860488,1741642493995,-4000.0,0.000289,43]
[355860489,1741642494063,-4000.0,0.000289,43]
[355860490,1741642494133,-4000.0,0.000289,43]
[355860491,1741642494204,-150.0,0.00029216,30]
[355860492,1741642494273,-394.68317864,0.00029216,30]
[355860493,1741642494341,-364.82,0.00029452,120]
[355860494,1741642494415,-158.92,0.00031271,30]
[355860495,1741642494483,-1987.17,0.000327,30]
[355860496,1741642494557,-150.0,0.00034851,30]
[355860497,1741642494626,-150.0,0.00034851,30]
[355860498,1741642494695,-150.0,0.00034851,30]
[355860499,1741642494764,-576.95396413,0.00034851,30]
[355860500,1741642494834,-218.71188992,0.00034851,30]
[355860501,1741642494904,-150.0,0.00034851,30]
[355860502,1741642494975,-447.61998567,0.00034851,30]
[355860503,1741642495046,-5900.80731856,0.00034851,30]
[355860504,1741642495118,-158.92,0.00036197,120]
[355860505,1741642495187,-159.0,0.00037665,120]
[355860506,1741642495257,-1268.0,0.00037802,120]
[355860507,1741642495324,-1151.06046455,0.00037802,120]
[355860508,1741642495397,-100000.0,0.0004,50]
[355860509,1741642495464,-172.76231178,0.00040138,30]
[355860510,1741642495534,-150.0,0.00040138,30]
[355860511,1741642495602,-1287.98852758,0.00040138,30]
[355860512,1741642495674,-100000.0,0.00041,51]
[355860513,1741642495746,-246.55346506,0.00041095,120]
[355860514,1741642495816,-158.92,0.00041123,120]
[355860515,1741642495889,-1490.37,0.000419,120]
[355860516,1741642495966,-100000.0,0.00042,52]
[355860517,1741642496042,-232.0,0.00042,30]
[355860518,1741642496113,-982.4,0.00042,30]
[355860519,1741642496201,-368.0,0.00042,30]
[355860520,1741642496272,-750.0,0.00042,30]
[355860521,1741642496343,-10000.0,0.000429,120]
[355860522,1741642496416,-10000.0,0.000429,90]
[355860523,1741642496493,-100000.0,0.00043,53]
[355860524,1741642496569,-100000.0,0.00044,54]
[355860525,1741642496639,-200.0,0.00044226,120]
[355860526,1741642496713,-2162.246,0.00044604,71]
[355860527,1741642496786,-10000.0,0.000449,120]
[355860528,1741642496858,-9662.83471658,0.000449,90]
[355860529,1741642496932,-100000.0,0.00045,55]
[355860530,1741642497004,-170.859,0.00045,120]
[355860531,1741642497075,-379.5692974,0.00045,120]
[355860532,1741642497147,-4786.0,0.00045001,117]
[355860533,1741642497220,-162.028214,0.0004545,30]
[355860534,1741642497292,-150.0,0.0004545,30]
[355860535,1741642497362,-150.0,0.0004545,30]
[355860536,1741642497450,-278.56845233,0.0004545,30]
[355860537,1741642497524,-150.0,0.0004545,30]
[355860538,1741642497592,-150.0,0.0004545,30]
[355860539,1741642497661,-150.0,0.0004545,30]
[355860540,1741642497733,-150.0,0.00045506,30]
[355860541,1741642497802,-449.58,0.00045511,120]
[355860542,1741642497873,-150.0,0.00045537,30]
[355860543,1741642497940,-150.0,0.00045562,30]
[355860544,1741642498007,-153.77835472,0.00045563,30]
[355860545,1741642498077,-150.0,0.00045563,30]
[355860546,1741642498149,-1129.97540441,0.00045563,30]
[355860547,1741642498221,-150.0,0.00045603,30]
[355860548,1741642498290,-150.0,0.00045618,30]
[355860549,1741642498562,-150.0,0.00045624,30]
[355860550,1741642498638,-150.0,0.00045674,30]
[355860551,1741642498712,-150.0,0.00045711,30]
[355860552,1741642498790,-150.0,0.00045731,30]
[355860553,1741642498862,-150.0,0.00045756,30]
[355860554,1741642498932,-150.0,0.00045787,30]
[355860555,1741642499002,-150.0,0.00045798,30]
[355860556,1741642499072,-150.0,0.00045843,30]
[355860557,1741642499144,-150.0,0.00045885,30]
[355860558,1741642499218,-150.0,0.00045899,30]
[355860559,1741642499287,-150.0,0.00045909,30]
[355860560,1741642499356,-150.0,0.00045909,30]
[355860561,1741642499425,-150.0,0.00045955,30]
[355860562,1741642499494,-150.0,0.00045972,30]
[355860563,1741642499566,-100000.0,0.00046,56]
[355860564,1741642499636,-150.0,0.00046011,30]
[355860565,1741642499706,-158.92,0.00046049,120]
[355860566,1741642499778,-150.0,0.00046059,30]
[355860567,1741642499849,-150.0,0.00046062,30]
[355860568,1741642499919,-150.0,0.00046067,30]
[355860569,1741642499988,-150.0,0.00046123,30]
[355860570,1741642500061,-150.0,0.00046147,30]
[355860571,1741642500134,-150.0,0.00046179,30]
[355860572,1741642500207,-150.0,0.00046215,30]
[355860573,1741642500281,-150.0,0.00046234,30]
[355860574,1741642500353,-150.0,0.00046236,30]
[355860575,1741642500426,-150.0,0.00046292,30]
[355860576,1741642500500,-150.0,0.00046321,30]
[355860577,1741642500572,-150.0,0.00046348,30]
[355860578,1741642500642,-150.0,0.00046368,30]
[355860579,1741642500710,-150.0,0.00046368,30]
[355860580,1741642500780,-150.0,0.00046404,30]
[355860581,1741642500852,-150.0,0.00046408,30]
[355860582,1741642500923,-150.0,0.0004646,30]
[355860583,1741642500995,-150.0,0.00046495,30]
[355860584,1741642501066,-150.0,0.00046516,30]
[355860585,1741642501138,-150.0,0.00046521,30]
[355860586,1741642501209,-150.0,0.00046572,30]
[355860587,1741642501278,-999.0,0.00046575,120]
[355860588,1741642501346,-150.0,0.00046582,30]
[355860589,1741642501414,-9820.32,0.00046589,30]
[355860590,1741642501482,-9820.32,0.00046589,30]
[355860591,1741642501551,-9820.32,0.00046589,30]
[355860592,1741642501616,-9820.32,0.00046589,30]
[355860593,1741642501684,-150.0,0.00046628,30]
[355860594,1741642501752,-150.0,0.00046669,30]
[355860595,1741642501819,-150.0,0.00046674,30]
[355860596,1741642501883,-150.0,0.00046684,30]
[355860597,1741642501949,-150.0,0.00046741,30]
[355860598,1741642502015,-150.0,0.00046756,30]
[355860599,1741642502084,-150.0,0.00046797,30]
[355860600,1741642502156,-150.0,0.00046827,30]
[355860601,1741642502225,-150.0,0.00046827,30]
[355860602,1741642502292,-150.0,0.00046843,30]
[355860603,1741642502358,-150.0,0.00046853,30]
[355860604,1741642502424,-9820.32,0.00046863,30]
[355860605,1741642502494,-9820.32,0.00046863,30]
[355860606,1741642502563,-999.0,0.00046904,120]
[355860607,1741642502631,-150.0,0.00046909,30]
[355860608,1741642502701,-150.0,0.0004693,30]
[355860609,1741642502772,-150.0,0.00046965,30]
[355860610,1741642502841,-150.0,0.0004698,30]
[355860611,1741642502910,-100000.0,0.00047,57]
[355860612,1741642502977,-120611.15768516,0.00047,30]
[355860613,1741642503047,-150.0,0.00047017,30]
[355860614,1741642503125,-150.0,0.00047021,30]
[355860615,1741642503204,-150.0,0.00047077,30]
[355860616,1741642503281,-150.0,0.00047104,30]
[355860617,1741642503357,-150.0,0.00047133,30]
[355860618,1741642503432,-150.0,0.00047133,30]
[355860619,1741642503504,-9820.32,0.00047137,30]
[355860620,1741642503579,-9820.32,0.00047137,30]
[355860621,1741642503657,-150.0,0.00047189,30]
[355860622,1741642503737,-150.0,0.00047191,30]
[355860623,1741642503817,-999.0,0.00047232,120]
[355860624,1741642503895,-150.0,0.00047246,30]
[355860625,1741642503978,-150.0,0.00047278,30]
[355860626,1741642504064,-150.0,0.00047286,30]
[355860627,1741642504152,-150.0,0.00047286,30]
[355860628,1741642504228,-150.0,0.00047302,30]
[355860629,1741642504301,-150.0,0.00047358,30]
[355860630,1741642504372,-150.0,0.00047366,30]
[355860631,1741642504445,-9820.32,0.00047411,30]
[355860632,1741642504515,-9820.32,0.00047411,30]
[355860633,1741642504590,-150.0,0.00047414,30]
[355860634,1741642504665,-150.0,0.00047439,30]
[355860635,1741642504739,-150.0,0.00047453,30]
[355860636,1741642504809,-150.0,0.0004747,30]
[355860637,1741642504880,-150.0,0.00047526,30]
[355860638,1741642504951,-150.0,0.0004754,30]
[355860639,1741642505026,-999.0,0.00047561,120]
[355860640,1741642505099,-150.0,0.00047582,30]
[355860641,1741642505176,-150.0,0.00047592,30]
[355860642,1741642505247,-150.0,0.00047627,30]
[355860643,1741642505318,-150.0,0.00047638,30]
[355860644,1741642505387,-2977.24453356,0.00047654,31]
[355860645,1741642505456,-9820.32,0.00047685,30]
[355860646,1741642505527,-9820.32,0.00047685,30]
[355860647,1741642505598,-150.0,0.00047694,30]
[355860648,1741642505668,-150.0,0.00047714,30]
[355860649,1741642505739,-150.0,0.00047745,30]
[355860650,1741642505809,-150.0,0.00047745,30]
[355860651,1741642505880,-150.0,0.00047751,30]
[355860652,1741642506185,-150.0,0.00047801,30]
[355860653,1741642506267,-150.0,0.00047807,30]
[355860654,1741642506339,-150.0,0.00047863,30]
[355860655,1741642506410,-150.0,0.00047888,30]
[355860656,1741642506481,-999.0,0.0004789,120]
[355860657,1741642506554,-150.0,0.00047898,30]
[355860658,1741642506625,-200.0,0.000479,38]
[355860659,1741642506694,-150.0,0.00047919,30]
[355860660,1741642506764,-9820.32,0.00047959,30]
[355860661,1741642506835,-9820.32,0.00047959,30]
[355860662,1741642506907,-150.0,0.00047975,30]
[355860663,1741642506983,-150.0,0.00047975,30]
[355860664,1741642507055,-200.0,0.00047999,120]
[355860665,1741642507127,-100000.0,0.00048,58]
[355860666,1741642507200,-78247.8659622,0.00048,120]
[355860667,1741642507268,-150.0,0.00048031,30]
[355860668,1741642507337,-150.0,0.00048052,30]
[355860669,1741642507414,-150.0,0.00048062,30]
[355860670,1741642507487,-150.0,0.00048087,30]
[355860671,1741642507557,-150.0,0.00048143,30]
[355860672,1741642507629,-150.0,0.00048149,30]
[355860673,1741642507704,-150.0,0.00048199,30]
[355860674,1741642507779,-150.0,0.00048205,30]
[355860675,1741642507853,-150.0,0.00048205,30]
[355860676,1741642507926,-999.0,0.00048219,120]
[355860677,1741642507999,-9820.32,0.00048233,30]
[355860678,1741642508069,-9820.32,0.00048233,30]
[355860679,1741642508141,-150.0,0.00048236,30]
[355860680,1741642508212,-1000000.0,0.0004825,120]
[355860681,1741642508285,-150.0,0.00048256,30]
[355860682,1741642508360,-150.0,0.00048312,30]
[355860683,1741642508435,-150.0,0.00048323,30]
[355860684,1741642508509,-150.0,0.00048358,30]
[355860685,1741642508582,-150.0,0.00048368,30]
[355860686,1741642508654,-200.0,0.000484,38]
[355860687,1741642508726,-150.0,0.0004841,30]
[355860688,1741642508798,-150.0,0.00048424,30]
[355860689,1741642508874,-150.0,0.0004848,30]
[355860690,1741642508946,-150.0,0.00048497,30]
[355860691,1741642509024,-1000000.0,0.000485,120]
[355860692,1741642509099,-9820.32,0.00048507,30]
[355860693,1741642509173,-9820.32,0.00048507,30]
[355860694,1741642509245,-150.0,0.00048511,30]
[355860695,1741642509315,-150.0,0.00048536,30]
[355860696,1741642509386,-999.0,0.00048547,120]
[355860697,1741642509458,-150.0,0.00048584,30]
[355860698,1741642509531,-150.0,0.00048592,30]
[355860699,1741642509603,-150.0,0.00048648,30]
[355860700,1741642509674,-150.0,0.00048664,30]
[355860701,1741642509746,-150.0,0.00048664,30]
[355860702,1741642509816,-150.0,0.00048672,30]
[355860703,1741642509885,-1094.5623589,0.0004869,30]
[355860704,1741642509956,-150.0,0.00048704,30]
[355860705,1741642510028,-1599313.62891485,0.0004875,120]
[355860706,1741642510712,-172.394679,0.00027782,120]
[355860707,1741642510785,-178.157708,0.00027782,120]
[355860708,1741642510868,-500.0,0.00027782,120]
[355860709,1741642510943,-500.0,0.00027782,120]
[355860710,1741642511017,-500.0,0.00027782,120]
[355860711,1741642511092,-500.0,0.00027782,120]
[355860712,1741642511165,-500.0,0.00027782,120]
[355860713,1741642511239,-500.0,0.00027782,120]
[355860714,1741642511312,-500.0,0.00027782,120]
[355860715,1741642511382,-500.0,0.00027782,120]
[355860716,1741642511454,-500.0,0.00027782,120]
[355860717,1741642511527,-399.22926405,0.00027782,120]
[355860718,1741642511596,-500.0,0.00027782,120]
[355860719,1741642511666,-500.0,0.00027782,120]
[355860720,1741642511737,-500.0,0.00027782,120]
[355860721,1741642511809,-500.0,0.00027782,120]
[355860722,1741642511881,-500.0,0.00027782,120]
[355860723,1741642511952,-500.0,0.00027782,120]
[355860724,1741642512023,-500.0,0.00027782,120]
[355860725,1741642512091,-500.0,0.00027782,120]
[355860726,1741642512164,-500.0,0.00027782,120]
[355860727,1741642512237,-500.0,0.00027782,120]
[355860728,1741642512308,-500.0,0.00027782,120]
[355860729,1741642512379,-341.11217847,0.00027782,120]
[355860730,1741642512452,-500.0,0.00027782,120]
[355860731,1741642512525,-500.0,0.00027782,120]
[355860732,1741642512889,-500.0,0.00027782,120]
[355860733,1741642512969,-500.0,0.00027782,120]
[355860734,1741642513055,-500.0,0.00027782,120]
[355860735,1741642513130,-500.0,0.00027782,120]
[355860736,1741642513203,-500.0,0.00027782,120]
[355860737,1741642513282,-500.0,0.00027782,120]
[355860738,1741642513359,-500.0,0.00027782,120]
[355860739,1741642513433,-500.0,0.00027782,120]
[355860740,1741642513507,-500.0,0.00027782,120]
[355860741,1741642513581,-269.03467277,0.00027782,120]
[355860742,1741642513658,-521.4,0.00027782,120]
[355860743,1741642513735,-500.0,0.00027782,120]
[355860744,1741642513809,-500.0,0.00027782,120]
[355860745,1741642513886,-500.0,0.00027782,120]
[355860746,1741642513961,-500.0,0.00027782,120]
[355860747,1741642514038,-407.37168164,0.00027782,120]
[355860748,1741642514114,-1316.47,0.00027782,120]
[355860749,1741642514192,-1316.47,0.00027782,120]
[355860750,1741642514271,-1316.47,0.00027782,120]
[355860751,1741642514350,-1316.47,0.00027782,120]
[355860752,1741642514424,-1316.47,0.00027782,120]
[355860753,1741642514499,-1316.47,0.00027782,120]
[355860754,1741642514575,-1316.47,0.00027782,120]
[355860755,1741642514648,-1316.47,0.00027782,120]
[355860756,1741642514724,-1316.47,0.00027782,120]
[355860757,1741642514804,-500.0,0.00027782,120]
[355860758,1741642514883,-1316.47,0.00027782,120]
[355860759,1741642514962,-500.0,0.00027782,120]
[355860760,1741642515041,-1316.47,0.00027782,120]
[355860761,1741642515116,-500.0,0.00027782,120]
[355860762,1741642515194,-1316.47,0.00027782,120]
[355860763,1741642515270,-500.0,0.00027782,120]
[355860764,1741642515343,-1316.47,0.00027782,120]
[355860765,1741642515414,-500.0,0.00027782,120]
[355860766,1741642515487,-1316.47,0.00027782,120]
[355860767,1741642515564,-500.0,0.00027782,120]
[355860768,1741642515636,-1316.47,0.00027782,120]
[355860769,1741642515705,-500.0,0.00027782,120]
[355860770,1741642515778,-1316.47,0.00027782,120]
[355860771,1741642515848,-500.0,0.00027782,120]
[355860772,1741642515921,-1316.47,0.00027782,120]
[355860773,1741642515992,-1316.47,0.00027782,120]
[355860774,1741642516063,-1316.47,0.00027782,120]
[355860775,1741642516137,-1316.47,0.00027782,120]
[355860776,1741642516212,-1316.47,0.00027782,120]
[355860777,1741642516284,-1316.47,0.00027782,120]
[355860778,1741642516353,-1316.47,0.00027782,120]
[355860779,1741642516423,-1316.64455875,0.00027782,120]
[355860780,1741642516497,-500.0,0.00027782,120]
[355860781,1741642516569,-500.0,0.00027782,120]
[355860782,1741642516643,-500.0,0.00027782,120]
[355860783,1741642516715,-500.0,0.00027782,120]
[355860784,1741642516785,-500.0,0.00027782,120]
[355860785,1741642516855,-500.0,0.00027782,120]
[355860786,1741642516924,-500.0,0.00027782,120]
[355860787,1741642516994,-500.0,0.00027782,120]
[355860788,1741642517064,-500.0,0.00027782,120]
[355860789,1741642517137,-500.0,0.00027782,120]
[355860790,1741642517210,-401.18155178,0.00027782,120]
[355860791,1741642517282,-500.0,0.00027782,120]
[355860792,1741642517354,-500.0,0.00027782,120]
[355860793,1741642517429,-500.0,0.00027782,120]
[355860794,1741642517500,-500.0,0.00027782,120]
[355860795,1741642517575,-500.0,0.00027782,120]
[355860796,1741642517649,-202.5491554,0.00027782,120]
[355860797,1741642517720,-500.0,0.00027782,120]
[355860798,1741642517792,-500.0,0.00027782,120]
[355860799,1741642517864,-500.0,0.00027782,120]
[355860800,1741642517935,-514.42008082,0.00027782,120]
[355860801,1741642518006,-500.0,0.00027782,120]
[355860802,1741642518078,-500.0,0.00027782,120]
[355860803,1741642518152,-500.0,0.00027782,120]
[355860804,1741642518224,-500.0,0.00027782,120]
[355860805,1741642518295,-500.0,0.00027782,120]
[355860806,1741642518370,-500.0,0.00027782,120]
[355860807,1741642518442,-500.0,0.00027782,120]
[355860808,1741642518516,-500.0,0.00027782,120]
[355860809,1741642518587,-500.0,0.00027782,120]
[355860810,1741642518660,-500.0,0.00027782,120]
[355860811,1741642518735,-500.0,0.00027782,120]
[355860812,1741642518808,-500.0,0.00027782,120]
[355860813,1741642518882,-500.0,0.00027782,120]
[355860814,1741642518953,-500.0,0.00027782,120]
[355860815,1741642519024,-500.0,0.00027782,120]
[355860816,1741642519095,-500.0,0.00027782,120]
[355860817,1741642519169,-500.0,0.00027782,120]
[355860818,1741642519242,-500.0,0.00027782,120]
[355860819,1741642519315,-500.0,0.00027782,120]
[355860820,1741642519388,-500.0,0.00027782,120]
[355860821,1741642519458,-500.0,0.00027782,120]
[355860822,1741642519527,-500.0,0.00027782,120]
[355860823,1741642519596,-540.17953339,0.00027782,120]
[355860824,1741642519667,-500.0,0.00027782,120]
[355860825,1741642519740,-500.0,0.00027782,120]
[355860826,1741642519809,-500.0,0.00027782,120]
[355860827,1741642519879,-500.0,0.00027782,120]
[355860828,1741642519951,-500.0,0.00027782,120]
[355860829,1741642520024,-500.0,0.00027782,120]
[355860830,1741642520097,-500.0,0.00027782,120]
[355860831,1741642520168,-500.0,0.00027782,120]
[355860832,1741642520238,-500.0,0.00027782,120]
[355860833,1741642520305,-500.0,0.00027782,120]
[355860834,1741642520527,-500.0,0.00027782,120]
[355860835,1741642520600,-500.0,0.00027782,120]
[355860836,1741642520669,-500.0,0.00027782,120]
[355860837,1741642520738,-552.77414419,0.00027782,120]
[355860838,1741642520808,-500.0,0.00027782,120]
[355860839,1741642520881,-500.0,0.00027782,120]
[355860840,1741642520951,-500.0,0.00027782,120]
[355860841,1741642521023,-500.0,0.00027782,120]
[355860842,1741642521094,-500.0,0.00027782,120]
[355860843,1741642521168,-500.0,0.00027782,120]
[355860844,1741642521242,-500.0,0.00027782,120]
[355860845,1741642521318,-500.0,0.00027782,120]
[355860846,1741642521390,-2337.84,0.00027782,120]
[355860847,1741642521459,-500.0,0.00027782,120]
[355860848,1741642521530,-2337.84,0.00027782,120]
[355860849,1741642521601,-500.0,0.00027782,120]
[355860850,1741642521671,-2337.84,0.00027782,120]
[355860851,1741642521742,-500.0,0.00027782,120]
[355860852,1741642521812,-2337.84,0.00027782,120]
[355860853,1741642521881,-500.0,0.00027782,120]
[355860854,1741642521951,-2337.84,0.00027782,120]
[355860855,1741642522020,-2337.84,0.00027782,120]
[355860856,1741642522088,-2337.84,0.00027782,120]
[355860857,1741642522158,-2337.84,0.00027782,120]
[355860858,1741642522227,-2337.84,0.00027782,120]
[355860859,1741642522298,-2337.84,0.00027782,120]
[355860860,1741642522368,-2337.84,0.00027782,120]
[355860861,1741642522438,-2337.84,0.00027782,120]
[355860862,1741642522511,-500.0,0.00027782,120]
[355860863,1741642522580,-500.0,0.00027782,120]
[355860864,1741642522656,-2337.84,0.00027782,120]
[355860865,1741642522729,-2337.84,0.00027782,120]